bitfinex/quotes_SOLUSD_20251030
["timestamp","ask_amount","ask_price","bid_price","bid_amount"]
[1761829304368,0.1,187.97,187.96,9.04659591]
[1761829304875,0.1,188.03,187.97,0.14216157]
[1761829305073,0.1,188.03,188.0,0.14216157]
[1761829305271,0.1,188.03,187.94,39.74704946]
[1761829305272,8.23443434,188.01,187.95,0.14216157]
[1761829305471,8.23443434,187.98,187.95,0.14216157]
[1761829305694,8.23443434,187.97,187.94,0.67]
[1761829305901,9.78882769,188.01,187.93,5.32112262]
[1761829305902,30.85082769,188.01,187.93,5.32112262]
[1761829306100,8.23443434,187.94,187.91,5.32169655]
[1761829306337,8.23443434,187.93,187.91,5.32169655]
[1761829306696,9.78882769,187.98,187.91,5.99169655]
[1761829307012,8.23443434,187.96,187.92,0.67]
[1761829307317,9.78882769,187.99,187.92,0.14216157]
[1761829307475,8.23443434,187.93,187.91,5.32169655]
[1761829307693,8.23443434,187.92,187.91,5.32169655]
[1761829308103,8.23443434,187.92,187.9,21.330052]
[1761829308294,8.23443434,187.92,187.9,22.000052]
[1761829309728,8.23443434,187.92,187.9,5.99194123]
[1761829310203,30.38082769,187.97,187.91,0.67]
[1761829310403,8.23443434,187.92,187.9,18.62689067]
[1761829310822,8.23443434,187.92,187.9,19.29689067]
[1761829312420,8.23443434,187.92,187.9,0.67]
[1761829312720,8.23443434,187.91,187.9,5.32189634]
[1761829313620,8.23443434,187.93,187.91,0.14216157]
[1761829313798,8.23443434,187.92,187.91,0.14216157]
[1761829314225,8.23443434,187.93,187.91,19.45809951]
[1761829314726,8.23443434,187.97,187.93,0.14216157]
[1761829314902,8.23443434,187.98,187.93,0.14216157]
[1761829315104,8.23443434,187.98,187.94,0.69]
[1761829315620,0.47,188.07,187.95,8.37659591]
[1761829315828,8.23443434,188.01,187.96,8.23443434]
[1761829316005,9.78882769,188.06,187.95,0.14216157]
[1761829316006,8.23443434,187.99,187.95,0.14216157]
[1761829316211,8.23443434,187.98,187.97,5.46215944]
[1761829316413,8.23443434,187.98,187.93,0.14216157]
[1761829316722,8.23443434,187.98,187.92,5.32141336]
[1761829316723,8.23443434,187.94,187.92,5.32141336]
[1761829316914,20.592,187.99,187.93,0.69]
[1761829317113,8.23443434,187.94,187.92,5.32141336]
[1761829317313,8.23443434,187.93,187.9,5.32197977]
[1761829317516,8.23443434,187.91,187.9,5.32197977]
[1761829317921,9.78882769,187.95,187.88,6.01236088]
[1761829318100,20.592,187.95,187.9,0.69]
[1761829318304,8.23443434,187.92,187.91,5.32169655]
[1761829318508,8.23443434,187.92,187.87,0.02]
[1761829318706,20.592,187.95,187.88,0.02]
[1761829318707,8.23443434,187.9,187.88,0.02]
[1761829319118,8.23443434,187.91,187.88,0.02]
[1761829319636,8.23443434,187.9,187.88,0.02]
[1761829320004,9.78882769,187.94,187.88,0.02]
[1761829320328,8.23443434,187.91,187.88,18.64891206]
[1761829320548,8.23443434,187.93,187.89,0.14216157]
[1761829320834,8.23443434,187.94,187.9,0.31]
[1761829321030,50.0,188.02,187.91,0.14216157]
[1761829321031,50.47,188.02,187.91,0.14216157]
[1761829321223,0.47,188.05,187.97,0.14216157]
[1761829321409,8.23443434,188.02,187.97,0.83216157]
[1761829321812,8.23443434,188.01,187.97,0.83216157]
[1761829322034,9.78882769,188.04,187.97,0.83216157]
[1761829322234,20.592,188.05,187.97,0.83216157]
[1761829322235,4.83972384,188.11,188.01,5.31886601]
[1761829322446,8.33443434,188.03,188.0,0.14216157]
[1761829322607,0.1,188.03,188.0,18.75903354]
[1761829322802,0.1,188.03,188.01,0.83216157]
[1761829323003,0.1,188.11,188.02,8.37659591]
[1761829323237,0.1,188.11,188.07,8.37659591]
[1761829323416,0.1,188.11,188.1,0.14216157]
[1761829323807,0.1,188.11,188.1,0.83216157]
[1761829324328,0.1,188.11,188.1,14.38291701]
[1761829324520,0.47,188.22,188.1,19.43928543]
[1761829324730,8.23443434,188.17,188.13,0.14216157]
[1761829325103,9.78882769,188.21,188.13,0.83216157]
[1761829325328,8.23443434,188.16,188.13,0.83216157]
[1761829325504,9.78882769,188.21,188.13,0.83216157]
[1761829325505,20.592,188.2,188.13,0.83216157]
[1761829325702,8.23443434,188.16,188.13,0.83216157]
[1761829326106,9.78882769,188.21,188.13,0.83216157]
[1761829326410,8.23443434,188.17,188.14,5.31519081]
[1761829326831,8.23443434,188.19,188.16,0.14216157]
[1761829327011,8.23443434,188.2,188.17,0.69]
[1761829327226,0.1,188.24,188.18,8.37659591]
[1761829327434,8.33443434,188.24,188.2,0.14216157]
[1761829327737,8.33443434,188.24,188.15,8.23443434]
[1761829327738,8.23443434,188.21,188.15,8.23443434]
[1761829328041,8.23443434,188.17,188.16,0.14216157]
[1761829328244,8.23443434,188.19,188.16,0.14216157]
[1761829328543,0.1,188.24,188.16,6.14668101]
[1761829328544,30.38082769,188.23,188.16,6.14668101]
[1761829328857,9.78882769,188.21,188.16,0.14216157]
[1761829329010,8.23443434,188.17,188.16,0.14216157]
[1761829329210,0.47,188.2,188.16,0.14216157]
[1761829329410,8.23443434,188.17,188.16,5.45678742]
[1761829329621,8.23443434,188.17,188.13,0.14216157]
[1761829329826,8.23443434,188.17,188.13,19.43631826]
[1761829330169,8.23443434,188.21,188.14,0.14216157]
[1761829330454,8.23443434,188.21,188.13,19.82570402]
[1761829330455,8.23443434,188.21,188.16,8.37659591]
[1761829330619,8.23443434,188.22,188.18,0.14216157]
[1761829330814,8.23443434,188.21,188.18,0.14216157]
[1761829331410,28.82643434,188.23,188.18,0.83216157]
[1761829331611,8.33443434,188.24,188.18,9.06659591]
[1761829331924,8.33443434,188.24,188.2,0.14216157]
[1761829332131,0.1,188.24,188.2,0.14216157]
[1761829332326,0.1,188.24,188.21,5.31321396]
[1761829332327,8.33443434,188.24,188.21,5.31321396]
[1761829332525,8.33443434,188.24,188.22,0.14216157]
[1761829332754,0.1,188.24,188.22,0.83216157]
[1761829333555,5.49216809,188.24,188.22,0.83216157]
[1761829334276,5.49216809,188.24,188.22,6.14490175]
[1761829334590,0.1,188.24,188.22,6.14490175]
[1761829334792,0.1,188.24,188.22,5.45490175]
[1761829334953,0.1,188.24,188.23,0.83216157]
[1761829335268,0.1,188.24,188.23,0.14216157]
[1761829335441,0.1,188.24,188.23,0.83216157]
[1761829335644,0.1,188.24,188.23,6.22432966]
[1761829336145,0.1,188.24,188.23,0.83216157]
[1761829336345,0.1,188.24,188.23,6.14481098]
[1761829337370,5.49216809,188.24,188.21,5.45537553]
[1761829337572,0.1,188.24,188.21,19.28624886]
[1761829337748,0.1,188.24,188.22,0.69]
[1761829338347,0.1,188.24,188.23,5.31264941]
[1761829338552,0.1,188.24,188.23,5.45481098]
[1761829338752,5.49216809,188.24,188.23,0.14216157]
[1761829340184,0.1,188.24,188.21,0.69]
[1761829340374,5.49216809,188.24,188.23,0.14216157]
[1761829340763,5.49216809,188.24,188.21,0.14216157]
[1761829340972,0.1,188.24,188.18,0.69]
[1761829341154,0.1,188.24,188.19,18.59799448]
[1761829341354,5.49216809,188.24,188.21,0.14216157]
[1761829341654,0.1,188.24,188.21,0.14216157]
[1761829341852,0.1,188.24,188.23,0.14216157]
[1761829342073,0.1,188.24,188.23,5.53432966]
[1761829342359,1e-08,188.24,188.23,11.56697907]
[1761829342564,1e-08,188.24,188.23,6.17481098]
[1761829342785,1e-08,188.24,188.23,11.56697907]
[1761829343681,1e-08,188.25,188.24,0.86216157]
[1761829343870,1e-08,188.25,188.24,6.25432966]
[1761829344056,0.57,188.41,188.28,30.38082769]
[1761829344260,0.1,188.41,188.35,5.39216809]
[1761829344474,5.49216809,188.41,188.36,18.72360135]
[1761829344787,0.1,188.41,188.39,0.14216157]
[1761829344984,54.30066301,188.51,188.39,0.14216157]
[1761829345187,5.39216809,188.45,188.39,6.25432966]
[1761829345364,20.592,188.46,188.39,0.86216157]
[1761829345569,5.39216809,188.44,188.39,0.86216157]
[1761829345775,5.39216809,188.43,188.39,0.86216157]
[1761829346066,5.39216809,188.42,188.39,0.14216157]
[1761829346265,9.78882769,188.46,188.39,0.14216157]
[1761829346473,5.39216809,188.42,188.41,0.14216157]
[1761829346998,30.38082769,188.46,188.4,5.30785562]
[1761829347298,30.38082769,188.46,188.4,5.45001719]
[1761829347583,5.39216809,188.42,188.4,5.45001719]
[1761829347885,5.39216809,188.41,188.4,0.14216157]
[1761829348092,5.39216809,188.42,188.4,0.14216157]
[1761829348277,20.592,188.46,188.41,0.14216157]
[1761829348465,5.39216809,188.45,188.42,5.30729221]
[1761829348664,20.592,188.46,188.42,5.30729221]
[1761829348972,5.39216809,188.45,188.42,5.30729221]
[1761829349172,5.39216809,188.44,188.42,5.30729221]
[1761829349477,20.592,188.46,188.42,5.30729221]
[1761829349681,54.2451816,188.51,188.45,0.14216157]
[1761829349682,5.39216809,188.5,188.45,0.14216157]
[1761829349871,5.39216809,188.49,188.45,0.14216157]
[1761829350067,30.38082769,188.51,188.45,0.14216157]
[1761829350068,5.39216809,188.51,188.45,6.25432966]
[1761829350274,9.78882769,188.58,188.46,5.39216809]
[1761829350483,5.39216809,188.52,188.48,0.14216157]
[1761829350871,9.78882769,188.54,188.48,0.86216157]
[1761829351084,5.39216809,188.52,188.48,0.14216157]
[1761829351426,9.78882769,188.58,188.48,0.14216157]
[1761829351558,9.78882769,188.59,188.48,0.86216157]
[1761829351760,5.39216809,188.53,188.48,6.25432966]
[1761829351961,59.78882769,188.59,188.48,0.14216157]
[1761829352164,9.78882769,188.55,188.48,5.53432966]
[1761829352398,0.1,188.61,188.54,0.14216157]
[1761829352695,5.49216809,188.61,188.55,23.95488354]
[1761829352992,0.1,188.61,188.56,0.14216157]
[1761829353189,5.39216809,188.58,188.56,0.14216157]
[1761829353395,9.88882769,188.61,188.5,21.312]
[1761829353567,5.39216809,188.56,188.52,0.14216157]
[1761829353892,9.88882769,188.61,188.54,5.53432966]
[1761829354110,9.88882769,188.61,188.54,0.14216157]
[1761829354264,5.39216809,188.6,188.54,6.25432966]
[1761829354465,5.39216809,188.6,188.56,0.14216157]
[1761829354866,5.39216809,188.57,188.54,5.3037806]
[1761829355190,5.39216809,188.55,188.48,5.30560271]
[1761829355390,20.592,188.56,188.49,0.14216157]
[1761829355883,5.39216809,188.53,188.49,0.14216157]
[1761829356283,20.592,188.56,188.51,0.14216157]
[1761829356474,5.39216809,188.54,188.51,0.14216157]
[1761829356796,5.39216809,188.57,188.51,0.86216157]
[1761829356975,20.592,188.58,188.51,0.86216157]
[1761829357173,5.39216809,188.54,188.51,0.14216157]
[1761829357370,5.39216809,188.55,188.51,0.14216157]
[1761829357597,9.78882769,188.57,188.51,0.14216157]
[1761829357802,20.592,188.58,188.51,0.14216157]
[1761829357969,5.39216809,188.54,188.51,0.14216157]
[1761829358174,5.39216809,188.55,188.51,0.14216157]
[1761829358404,5.39216809,188.54,188.51,0.14216157]
[1761829358622,9.78882769,188.57,188.51,0.14216157]
[1761829358774,9.78882769,188.57,188.51,5.44676053]
[1761829358775,5.39216809,188.54,188.51,5.44676053]
[1761829358978,5.39216809,188.54,188.51,18.70865645]
[1761829359275,5.39216809,188.54,188.51,6.16676053]
[1761829359680,5.39216809,188.53,188.51,6.16676053]
[1761829359870,9.78882769,188.57,188.45,20.592]
[1761829359871,5.39216809,188.52,188.47,13.26462376]
[1761829360074,5.39216809,188.52,188.48,18.56933286]
[1761829360288,0.1,188.61,188.51,0.14216157]
[1761829360510,5.39216809,188.57,188.52,23.9578375]
[1761829360700,20.592,188.59,188.52,24.6778375]
[1761829360903,5.39216809,188.57,188.52,24.6778375]
[1761829361082,5.39216809,188.56,188.53,0.14216157]
[1761829361595,5.39216809,188.54,188.53,0.14216157]
[1761829361791,9.78882769,188.58,188.53,0.14216157]
[1761829362195,5.39216809,188.55,188.53,0.14216157]
[1761829362393,5.39216809,188.54,188.53,0.14216157]
[1761829362721,5.39216809,188.55,188.54,5.30391428]
[1761829363707,5.39216809,188.55,188.54,18.5637]
[1761829364209,20.592,188.52,188.45,6.02644733]
[1761829364383,20.592,188.52,188.45,19.29256566]
[1761829364908,20.592,188.52,188.46,0.14216157]
[1761829365088,20.592,188.52,188.45,19.29256566]
[1761829365279,20.592,188.52,188.46,0.14216157]
[1761829365480,5.39216809,188.47,188.46,0.14216157]
[1761829365881,5.39216809,188.47,188.45,5.30644733]
[1761829366087,5.39216809,188.46,188.45,18.57256566]
[1761829366480,20.592,188.5,188.47,5.30588422]
[1761829366678,5.39216809,188.48,188.47,5.30588422]
[1761829367087,20.592,188.5,188.47,19.29059478]
[1761829367295,5.30140445,188.63,188.47,19.29059478]
[1761829367296,5.39216809,188.48,188.47,5.30588422]
[1761829367890,9.78882769,188.51,188.47,5.30588422]
[1761829368200,5.39216809,188.48,188.47,5.30588422]
[1761829368587,5.39216809,188.48,188.46,13.26524231]
[1761829368786,5.39216809,188.47,188.46,13.26524231]
[1761829369327,5.39216809,188.47,188.45,5.30644733]
[1761829369490,5.39216809,188.47,188.45,6.02644733]
[1761829369924,5.39216809,188.46,188.45,5.30644733]
[1761829370289,30.38082769,188.5,188.45,5.30644733]
[1761829370599,5.39216809,188.53,188.51,0.14216157]
[1761829370787,5.39216809,188.54,188.51,0.14216157]
[1761829370982,5.39216809,188.55,188.51,0.86216157]
[1761829371212,5.39216809,188.56,188.51,0.86216157]
[1761829371419,5.39216809,188.54,188.5,5.30503978]
[1761829371588,5.39216809,188.53,188.49,0.14216157]
[1761829372019,5.39216809,188.53,188.5,0.66]
[1761829372195,5.39216809,188.53,188.49,0.80216157]
[1761829372518,5.39216809,188.52,188.5,5.30503978]
[1761829372691,5.39216809,188.51,188.42,0.66]
[1761829372889,20.592,188.49,188.42,0.66]
[1761829373213,5.39216809,188.47,188.42,0.66]
[1761829373399,5.39216809,188.46,188.42,0.66]
[1761829373597,5.39216809,188.45,188.42,0.66]
[1761829373916,5.39216809,188.43,188.4,18.57749468]
[1761829374109,5.39216809,188.41,188.4,18.57749468]
[1761829374308,5.39216809,188.42,188.4,18.57749468]
[1761829374506,5.39216809,188.42,188.41,5.44973547]
[1761829374707,20.592,188.44,188.41,18.57650866]
[1761829374913,5.39216809,188.43,188.41,18.57650866]
[1761829375306,5.39216809,188.42,188.41,5.3075739]
[1761829375492,5.39216809,188.42,188.41,5.44973547]
[1761829375687,20.592,188.44,188.41,19.37867023]
[1761829375917,5.39216809,188.43,188.41,5.44973547]
[1761829376220,20.592,188.44,188.41,19.37867023]
[1761829376621,20.592,188.44,188.41,18.71867023]
[1761829376834,25.98416809,188.44,188.41,18.71867023]
[1761829377038,5.39216809,188.42,188.41,5.3075739]
[1761829377692,20.592,188.44,188.41,5.3075739]
[1761829378125,5.39216809,188.42,188.41,5.3075739]
[1761829378337,5.39216809,188.42,188.38,0.14216157]
[1761829378338,9.78882769,188.41,188.38,5.30841915]
[1761829378628,5.39216809,188.39,188.34,0.66]
[1761829378821,5.39216809,188.35,188.31,0.66]
[1761829380014,4.17813206,188.42,188.31,0.66]
[1761829380322,5.39216809,188.35,188.31,0.66]
[1761829380521,5.39216809,188.35,188.32,0.14216157]
[1761829380724,20.592,188.4,188.32,0.14216157]
[1761829380725,5.39216809,188.36,188.33,18.58439972]
[1761829381028,25.98416809,188.38,188.34,0.14216157]
[1761829381328,20.592,188.38,188.34,0.14216157]
[1761829381626,20.592,188.4,188.34,0.80216157]
[1761829381841,20.592,188.4,188.35,0.66]
[1761829382010,5.39216809,188.5,188.36,21.26505984]
[1761829382213,5.39216809,188.65,188.36,21.26505984]
[1761829382214,5.39216809,188.51,188.45,0.14216157]
[1761829382402,5.39216809,188.51,188.45,5.53432966]
[1761829382605,4.32744248,188.55,188.46,18.57158017]
[1761829382805,5.39216809,188.51,188.47,0.14216157]
[1761829383008,50.0,188.56,188.47,0.14216157]
[1761829383213,5.39216809,188.5,188.47,0.14216157]
[1761829383411,9.78882769,188.53,188.47,0.14216157]
[1761829383617,5.39216809,188.54,188.47,0.14216157]
[1761829383902,20.592,188.51,188.47,0.14216157]
[1761829384804,20.592,188.51,188.48,5.30560271]
[1761829385524,20.592,188.52,188.48,18.5696095]
[1761829385827,0.1,188.61,188.5,5.39216809]
[1761829386032,0.1,188.61,188.53,5.39216809]
[1761829386320,0.1,188.61,188.48,18.5696095]
[1761829386321,0.1,188.61,188.56,0.14216157]
[1761829386828,0.1,188.61,188.57,5.30307047]
[1761829387330,5.39216809,188.6,188.54,5.30391428]
[1761829387511,20.592,188.58,188.54,18.5637]
[1761829388226,20.592,188.58,188.53,5.30416391]
[1761829388408,20.592,188.58,188.49,5.30532123]
[1761829388409,20.592,188.54,188.49,5.30532123]
[1761829388726,25.98416809,188.54,188.49,18.56862432]
[1761829389028,25.98416809,188.54,188.49,13.26330309]
[1761829389330,25.98416809,188.54,188.49,13.92330309]
[1761829389631,20.592,188.53,188.51,0.14216157]
[1761829390003,20.592,188.53,188.51,0.80216157]
[1761829390499,20.592,188.55,188.51,0.80216157]
[1761829390914,20.592,188.55,188.52,18.56566941]
[1761829391108,20.592,188.55,188.52,19.22566941]
[1761829391530,20.592,188.55,188.52,5.30447697]
[1761829391720,25.98416809,188.55,188.52,5.30447697]
[1761829391909,20.592,188.55,188.52,5.30447697]
[1761829392236,50.0,188.66,188.54,5.39216809]
[1761829392418,9.78882769,188.62,188.56,5.39216809]
[1761829392749,25.98416809,188.62,188.56,0.14216157]
[1761829392928,5.39216809,188.62,188.57,5.30307047]
[1761829393108,9.88882769,188.61,188.53,0.66]
[1761829393310,5.39216809,188.6,188.54,0.14216157]
[1761829393512,5.39216809,188.6,188.51,13.26165942]
[1761829393513,20.592,188.57,188.51,13.26165942]
[1761829393716,20.592,188.57,188.52,0.80216157]
[1761829394210,20.592,188.57,188.54,0.14216157]
[1761829394423,9.88882769,188.61,188.55,0.66]
[1761829394737,20.592,188.58,188.55,0.66]
[1761829394942,5.39216809,188.6,188.56,5.30335171]
[1761829395410,8.16503419,188.6,188.56,5.30335171]
[1761829396334,8.16503419,188.58,188.51,0.71]
[1761829396545,0.1,188.61,188.54,8.30719576]
[1761829396748,0.1,188.61,188.56,0.14216157]
[1761829397046,0.1,188.61,188.57,18.56074666]
[1761829397220,0.1,188.61,188.58,0.85216157]
[1761829398133,0.1,188.61,188.58,9.01719576]
[1761829398529,0.1,188.61,188.6,0.14216157]
[1761829398848,8.16503419,188.7,188.62,0.14216157]
[1761829399031,8.16503419,188.69,188.62,8.30719576]
[1761829399349,8.16503419,188.7,188.64,0.14216157]
[1761829399523,50.0,188.73,188.64,0.14216157]
[1761829399724,8.16503419,188.7,188.64,0.85216157]
[1761829400042,28.75703419,188.7,188.64,0.85216157]
[1761829400257,8.16503419,188.7,188.64,0.85216157]
[1761829400547,28.75703419,188.7,188.64,0.85216157]
[1761829401125,28.75703419,188.7,188.66,0.14216157]
[1761829401648,20.592,188.7,188.65,5.30082162]
[1761829401824,8.16503419,188.69,188.65,6.01082162]
[1761829402425,8.16503419,188.68,188.65,6.01082162]
[1761829402628,20.592,188.7,188.65,5.30082162]
[1761829402629,8.16503419,188.67,188.65,5.30082162]
[1761829403035,8.16503419,188.68,188.65,5.30082162]
[1761829403233,28.75703419,188.7,188.65,0.14216157]
[1761829403447,20.592,188.7,188.67,0.14216157]
[1761829403755,8.16503419,188.68,188.65,0.14216157]
[1761829404128,8.16503419,188.69,188.65,0.86216157]
[1761829404557,8.16503419,188.68,188.65,0.86216157]
[1761829404851,8.16503419,188.69,188.65,0.86216157]
[1761829405147,8.16503419,188.69,188.66,18.55189228]
[1761829405351,20.592,188.73,188.67,0.14216157]
[1761829405525,8.16503419,188.71,188.67,0.86216157]
[1761829405729,0.1,188.74,188.67,0.86216157]
[1761829405951,8.16503419,188.72,188.67,0.86216157]
[1761829406250,0.1,188.74,188.67,0.86216157]
[1761829406630,8.16503419,188.71,188.67,0.86216157]
[1761829407046,8.16503419,188.72,188.67,0.86216157]
[1761829407332,8.16503419,188.72,188.69,0.14216157]
[1761829407645,20.592,188.73,188.68,18.5499258]
[1761829407843,8.16503419,188.72,188.69,0.14216157]
[1761829408058,8.16503419,188.71,188.68,5.2999788]
[1761829408360,20.592,188.69,188.65,0.72]
[1761829408536,8.16503419,188.7,188.66,0.14216157]
[1761829408861,28.75703419,188.7,188.66,0.14216157]
[1761829409046,8.16503419,188.69,188.65,0.72]
[1761829409230,8.16503419,188.69,188.66,5.30054065]
[1761829409430,0.1,188.74,188.67,0.14216157]
[1761829409647,8.26503419,188.74,188.67,9.02719576]
[1761829409961,8.26503419,188.74,188.7,8.30719576]
[1761829409962,0.1,188.74,188.7,8.30719576]
[1761829412741,0.1,188.8,188.75,8.16503419]
[1761829412974,0.1,188.8,188.75,8.88503419]
[1761829413186,0.1,188.8,188.78,5.29717131]
[1761829413460,0.1,188.8,188.79,0.14216157]
[1761829413661,0.1,188.8,188.79,0.86216157]
[1761829414235,8.26503419,188.8,188.75,0.72]
[1761829414436,8.26503419,188.8,188.76,0.14216157]
[1761829414437,0.1,188.8,188.76,0.14216157]
[1761829414843,0.1,188.8,188.76,0.86216157]
[1761829415286,0.1,188.8,188.77,5.29745192]
[1761829415748,0.1,188.8,188.75,13.24433725]
[1761829415749,8.16503419,188.78,188.75,5.29792228]
[1761829415946,20.592,188.78,188.7,0.72]
[1761829416264,8.16503419,188.75,188.7,0.72]
[1761829416563,8.16503419,188.76,188.7,0.72]
[1761829416762,20.592,188.78,188.71,0.14216157]
[1761829416944,20.592,188.78,188.73,0.14216157]
[1761829417139,0.2,188.8,188.66,0.53005406]
[1761829417140,20.592,188.74,188.66,5.30047723]
[1761829417340,8.16503419,188.7,188.67,0.72]
[1761829417560,20.592,188.71,188.67,0.14216157]
[1761829417867,20.592,188.71,188.66,5.30047723]
[1761829417868,8.16503419,188.7,188.66,5.30047723]
[1761829418067,8.16503419,188.69,188.66,18.55182886]
[1761829418366,8.16503419,188.69,188.65,18.55287319]
[1761829418744,8.16503419,188.69,188.65,5.30081913]
[1761829418951,8.16503419,188.69,188.65,6.02081913]
[1761829419156,8.16503419,188.69,188.62,8.16503419]
[1761829419157,8.16503419,188.68,188.62,5.30166472]
[1761829419351,20.592,188.71,188.62,5.30166472]
[1761829419352,8.16503419,188.66,188.62,18.55513513]
[1761829419960,8.16503419,188.67,188.62,19.27513513]
[1761829420243,20.592,188.71,188.63,0.72]
[1761829420244,9.78882769,188.7,188.63,0.72]
[1761829420467,8.16503419,188.69,188.63,0.72]
[1761829420744,8.16503419,188.69,188.64,0.14216157]
[1761829420946,20.592,188.69,188.64,8.30719576]
[1761829421159,20.592,188.69,188.66,0.14216157]
[1761829421370,8.16503419,188.72,188.67,6.02025971]
[1761829421666,20.592,188.72,188.67,19.27090899]
[1761829421871,8.16503419,188.71,188.67,19.27090899]
[1761829422069,20.592,188.72,188.67,19.27090899]
[1761829422247,8.16503419,188.71,188.67,19.27090899]
[1761829422795,20.592,188.72,188.68,0.14216157]
[1761829423070,0.1,188.8,188.71,0.14216157]
[1761829423071,8.16503419,188.77,188.71,0.14216157]
[1761829423364,8.16503419,188.77,188.72,18.54599405]
[1761829423566,0.1,188.8,188.73,0.14216157]
[1761829423751,8.16503419,188.79,188.73,0.86216157]
[1761829423943,8.16503419,188.74,188.72,5.29885544]
[1761829424266,8.16503419,188.77,188.72,19.26599405]
[1761829424565,28.75703419,188.77,188.72,19.26599405]
[1761829426189,8.26503419,188.8,188.73,9.02719576]
[1761829426477,28.85703419,188.8,188.73,9.02719576]
[1761829426690,28.85703419,188.8,188.74,0.72]
[1761829427391,8.16503419,188.78,188.75,5.29801324]
[1761829427592,8.16503419,188.77,188.75,5.29801324]
[1761829427800,20.692,188.8,188.73,0.14216157]
[1761829427801,8.16503419,188.76,188.74,5.29824874]
[1761829428466,8.16503419,188.75,188.74,5.29824874]
[1761829428677,8.16503419,188.76,188.74,5.29824874]
[1761829428869,30.38082769,188.79,188.7,0.72]
[1761829428870,8.16503419,188.75,188.7,0.72]
[1761829429077,8.16503419,188.75,188.7,6.01941706]
[1761829429381,8.16503419,188.75,188.72,5.29885544]
[1761829429776,30.48082769,188.79,188.72,18.54599405]
[1761829429979,28.75703419,188.79,188.73,0.86216157]
[1761829430206,20.592,188.73,188.63,5.30138366]
[1761829430495,8.16503419,188.69,188.64,0.72]
[1761829430707,8.16503419,188.69,188.65,0.14216157]
[1761829431070,8.16503419,188.69,188.65,0.72]
[1761829431269,8.16503419,188.68,188.66,5.30054065]
[1761829431489,20.592,188.7,188.65,5.30081098]
[1761829431490,8.16503419,188.67,188.65,5.30081098]
[1761829431794,20.692,188.7,188.65,5.30081098]
[1761829431795,8.16503419,188.68,188.65,5.30081098]
[1761829431999,0.1,188.73,188.65,5.30081098]
[1761829432000,28.75703419,188.69,188.65,5.30081098]
[1761829432188,8.16503419,188.68,188.65,5.30081098]
[1761829432680,20.592,188.69,188.65,18.55286504]
[1761829433001,28.75703419,188.69,188.65,18.55286504]
[1761829433310,28.75703419,188.69,188.65,19.23286504]
[1761829434684,8.16503419,188.68,188.65,19.23286504]
[1761829434972,20.592,188.69,188.65,18.55286504]
[1761829435171,20.592,188.69,188.65,19.23286504]
[1761829435392,8.16503419,188.68,188.65,19.23286504]
[1761829435795,9.88882769,188.72,188.66,0.68]
[1761829435974,8.16503419,188.69,188.66,0.68]
[1761829436173,9.88882769,188.76,188.67,0.14216157]
[1761829436395,9.88882769,188.76,188.69,0.14216157]
[1761829436396,28.75703419,188.73,188.69,0.14216157]
[1761829436699,20.592,188.73,188.7,0.68]
[1761829436902,8.16503419,188.74,188.7,0.68]
[1761829437075,50.1,188.8,188.66,0.14216157]
[1761829437076,20.592,188.7,188.66,0.14216157]
[1761829437398,20.592,188.7,188.67,5.30025971]
[1761829437606,8.16503419,188.68,188.67,5.30025971]
[1761829437783,20.592,188.7,188.67,5.30025971]
[1761829437986,8.16503419,188.69,188.67,5.30025971]
[1761829438506,28.75703419,188.7,188.67,5.30025971]
[1761829438800,8.16503419,188.69,188.67,5.30025971]
[1761829439191,8.16503419,188.69,188.66,5.30054065]
[1761829439391,20.592,188.7,188.66,5.30054065]
[1761829439392,8.16503419,188.68,188.66,5.30054065]
[1761829439589,20.592,188.7,188.66,19.23189228]
[1761829439590,8.16503419,188.69,188.66,19.23189228]
[1761829439782,30.48082769,188.77,188.67,0.82216157]
[1761829439986,20.592,188.73,188.67,8.98719576]
[1761829440401,8.16503419,188.74,188.69,0.14216157]
[1761829440603,8.16503419,188.74,188.7,3.94903912]
[1761829440776,20.592,188.72,188.71,3.94903912]
[1761829441400,20.592,188.74,188.71,3.95230847]
[1761829441701,20.592,188.74,188.69,19.22869804]
[1761829441882,8.16503419,188.73,188.7,0.68]
[1761829442081,8.16503419,188.72,188.69,19.22869804]
[1761829442287,8.16503419,188.73,188.69,18.54869804]
[1761829442599,8.16503419,188.71,188.69,5.29945325]
[1761829442804,8.16503419,188.7,188.69,5.29945325]
[1761829443174,8.16503419,188.71,188.68,13.24977736]